bitfinex-derivatives/quotes_BTCF0:USTF0_20241013
["timestamp","ask_amount","ask_price","bid_price","bid_amount"]
[1728834455366,0.10872683,62251.0,62250.0,0.080325]
[1728834455661,0.02840183,62251.0,62250.0,0.190325]
[1728834455863,0.08273333,62252.0,62251.0,0.080324]
[1728834456058,0.00241033,62252.0,62251.0,0.080324]
[1728834456663,0.08273233,62252.0,62251.0,0.080324]
[1728834457161,0.00241033,62252.0,62251.0,0.080324]
[1728834457468,0.08273233,62252.0,62251.0,0.080324]
[1728834458165,0.08273233,62252.0,62251.0,0.082324]
[1728834460366,0.08273233,62252.0,62251.0,0.11145318]
[1728834460568,0.08273233,62252.0,62251.0,0.082324]
[1728834462264,0.36534,62258.0,62251.0,0.112]
[1728834462564,0.080318,62256.0,62255.0,0.080316]
[1728834463464,0.080318,62256.0,62255.0,0.190316]
[1728834464170,0.080318,62256.0,62255.0,0.191316]
[1728834465666,0.084008,62263.0,62255.0,0.111]
[1728834465866,0.084008,62263.0,62258.0,0.080314]
[1728834465867,0.080314,62259.0,62258.0,0.080314]
[1728834466059,0.36172,62264.0,62263.0,0.080308]
[1728834466263,0.3608,62264.0,62263.0,0.080308]
[1728834466474,0.441107,62264.0,62263.0,0.080308]
[1728834467173,0.441107,62264.0,62263.0,0.081308]
[1728834467470,0.441107,62264.0,62263.0,0.191308]
[1728834467667,0.080307,62264.0,62263.0,0.191308]
[1728834467875,0.080307,62264.0,62263.0,0.251308]
[1728834468470,0.00096001,62269.0,62263.0,0.5328]
[1728834468776,0.0037,62271.0,62270.0,0.080299]
[1728834469075,0.08029,62277.0,62276.0,0.08029]
[1728834469272,0.08029,62277.0,62268.0,0.57986876]
[1728834469273,0.00610895,62284.0,62274.0,0.3608]
[1728834469478,0.080284,62282.0,62281.0,0.17]
[1728834469773,0.080284,62282.0,62281.0,0.250285]
[1728834470861,0.080284,62282.0,62281.0,0.17]
[1728834471070,0.080286,62280.0,62279.0,0.3608]
[1728834471274,0.0004,62280.0,62279.0,0.441087]
[1728834471463,0.0004,62280.0,62279.0,0.611087]
[1728834471672,0.0004,62280.0,62279.0,0.441087]
[1728834472271,0.0004,62280.0,62279.0,0.442087]
[1728834473375,0.3608,62293.0,62279.0,0.612087]
[1728834473376,0.080275,62290.0,62279.0,0.612087]
[1728834473571,0.080275,62290.0,62289.0,0.17]
[1728834473867,0.080275,62290.0,62289.0,0.1661]
[1728834474067,0.3608,62293.0,62288.0,0.080275]
[1728834474068,0.080275,62289.0,62288.0,0.080275]
[1728834474274,0.080278,62286.0,62285.0,0.0314]
[1728834474463,0.080678,62286.0,62285.0,0.2014]
[1728834475771,0.08028,62285.0,62284.0,0.00088]
[1728834475969,0.080286,62280.0,62279.0,0.001]
[1728834476174,0.080289,62278.0,62277.0,0.17]
[1728834476565,0.080689,62278.0,62277.0,0.17]
[1728834477973,0.08029,62277.0,62276.0,0.080291]
[1728834478175,0.08069,62277.0,62276.0,0.080291]
[1728834478569,0.08069,62277.0,62273.0,0.3608]
[1728834478570,0.080294,62274.0,62273.0,0.3608]
[1728834478766,0.080694,62274.0,62273.0,0.3608]
[1728834479375,0.080295,62273.0,62268.0,0.3608]
[1728834479675,0.0807,62269.0,62268.0,0.3608]
[1728834481080,0.0807,62269.0,62268.0,0.001]
[1728834481081,0.0817,62269.0,62268.0,0.001]
[1728834481269,0.0817,62269.0,62268.0,0.002]
[1728834481470,0.4425,62269.0,62268.0,0.002]
[1728834481670,0.0817,62269.0,62268.0,0.172]
[1728834481871,0.0817,62269.0,62268.0,0.252302]
[1728834482070,0.0014,62269.0,62268.0,0.252302]
[1728834483084,0.0014,62269.0,62268.0,0.613102]
[1728834483595,0.0014,62269.0,62268.0,0.252302]
[1728834483774,0.0014,62269.0,62268.0,0.251302]
[1728834483976,0.0014,62269.0,62268.0,0.252302]
[1728834484377,0.0014,62269.0,62268.0,0.32761438]
[1728834484683,0.0004,62269.0,62268.0,0.32761438]
[1728834484889,0.0014,62269.0,62268.0,0.32861438]
[1728834485278,0.0004,62274.0,62268.0,0.28071173]
[1728834485479,0.0004,62274.0,62273.0,0.611095]
[1728834486778,0.0004,62274.0,62273.0,0.612095]
[1728834486986,0.0004,62274.0,62273.0,1.093855]
[1728834487986,0.0004,62274.0,62273.0,0.612095]
[1728834488186,0.0004,62274.0,62273.0,0.613095]
[1728834489382,0.0004,62274.0,62273.0,0.67733285]
[1728834489884,0.0004,62278.0,62276.0,0.080291]
[1728834490081,0.0004,62278.0,62276.0,0.250291]
[1728834491478,0.0004,62289.0,62279.0,0.080287]
[1728834491679,0.0004,62289.0,62288.0,0.801876]
[1728834492385,0.0004,62289.0,62288.0,0.84982734]
[1728834492886,0.0004,62289.0,62288.0,0.801876]
[1728834493293,0.0004,62289.0,62288.0,0.84982734]
[1728834493480,0.0004,62289.0,62288.0,0.85082781]
[1728834494087,0.0004,62289.0,62288.0,0.803876]
[1728834494292,0.0004,62289.0,62288.0,0.85182781]
[1728834494992,0.0004,62289.0,62288.0,0.803876]
[1728834495190,0.0004,62289.0,62288.0,0.85182781]
[1728834495388,0.0004,62289.0,62288.0,0.85184279]
[1728834495690,0.0004,62289.0,62288.0,0.803876]
[1728834496186,0.0004,62289.0,62288.0,0.81194563]
[1728834497284,0.0004,62289.0,62288.0,0.87588445]
[1728834498381,0.0004,62289.0,62288.0,0.09034563]
[1728834498599,0.0004,62289.0,62288.0,0.81194563]
[1728834500899,0.0004,62289.0,62288.0,0.87591629]
[1728834504701,0.0004,62289.0,62288.0,0.81194563]
[1728834508494,0.0004,62289.0,62288.0,0.87591629]
[1728834509001,0.0037,62296.0,62295.0,0.080267]
[1728834509297,0.00240837,62299.0,62295.0,0.080267]
[1728834509298,0.00240837,62299.0,62298.0,0.080263]
[1728834510202,0.00240837,62299.0,62298.0,0.250263]
[1728834511206,0.0639,62304.0,62303.0,0.080256]
[1728834512791,0.0639,62304.0,62303.0,0.081256]
[1728834513093,0.0639,62304.0,62303.0,0.082256]
[1728834513401,0.144155,62304.0,62303.0,0.082256]
[1728834519803,0.144155,62304.0,62303.0,0.192256]
[1728834523810,0.144155,62304.0,62303.0,0.082256]
[1728834525007,0.144155,62304.0,62303.0,0.192256]
[1728834527007,0.144155,62304.0,62303.0,0.002]
[1728834529609,0.080255,62304.0,62303.0,0.002]
[1728834529813,0.080255,62304.0,62303.0,0.082256]
[1728834533716,0.080255,62304.0,62303.0,0.14622666]
[1728834533910,0.080255,62304.0,62303.0,0.082256]
[1728834537612,0.080255,62304.0,62303.0,0.13042016]
[1728834539716,0.080255,62304.0,62303.0,0.082256]
[1728834540317,0.080255,62304.0,62303.0,0.13042016]
[1728834541023,0.080255,62304.0,62303.0,0.082256]
[1728834541213,0.080255,62304.0,62303.0,0.13042926]
[1728834541413,0.080255,62304.0,62303.0,0.082256]
[1728834542420,0.0293359,62305.0,62304.0,0.080255]
[1728834542723,0.00454,62311.0,62310.0,0.080247]
[1728834542926,0.0037,62318.0,62310.0,0.17397066]
[1728834543220,0.0037,62318.0,62315.0,0.23840688]
[1728834543221,0.08264788,62316.0,62315.0,0.23840688]
[1728834543422,0.08264788,62316.0,62315.0,0.190241]
[1728834543627,0.11197795,62316.0,62315.0,0.190241]
[1728834544218,0.00240788,62316.0,62315.0,0.190241]
[1728834544424,0.00240788,62316.0,62315.0,0.220841]
[1728834544624,0.080233,62322.0,62318.0,0.080237]
[1728834544625,0.34820788,62319.0,62318.0,0.080237]
[1728834544825,0.34820788,62319.0,62318.0,0.190237]
[1728834545025,0.37696835,62319.0,62318.0,0.190237]
[1728834545729,0.45720435,62319.0,62318.0,0.190237]
[1728834545930,0.45720435,62319.0,62318.0,0.191237]
[1728834548730,0.34820788,62319.0,62318.0,0.191237]
[1728834549631,0.080233,62321.0,62320.0,0.080235]
[1728834549829,0.080233,62321.0,62320.0,0.190235]
[1728834550027,0.080233,62321.0,62320.0,0.23836469]
[1728834550425,0.10886422,62321.0,62320.0,0.190235]
[1728834550634,0.080233,62321.0,62320.0,0.190235]
[1728834551438,0.080233,62321.0,62320.0,0.191235]
[1728834551824,0.190233,62321.0,62320.0,0.001]
[1728834552333,0.080233,62321.0,62320.0,0.191235]
[1728834552837,0.080233,62321.0,62320.0,0.23936469]
[1728834553036,0.080233,62321.0,62320.0,0.191235]
[1728834553833,0.080233,62321.0,62320.0,0.081235]
[1728834556126,0.390212,62322.0,62320.0,0.081235]
[1728834556326,0.109645,62322.0,62321.0,0.080233]
[1728834556627,0.109645,62322.0,62320.0,0.001]
[1728834556628,0.080227,62326.0,62320.0,0.001]
[1728834556840,0.36534,62329.0,62323.0,0.08023]
[1728834556841,0.08023,62324.0,62323.0,0.08023]
[1728834557935,0.25023,62324.0,62323.0,0.08023]
[1728834558132,0.25023,62324.0,62323.0,0.08123]
[1728834560836,0.08023,62324.0,62323.0,0.11002491]
[1728834561340,0.08023,62324.0,62323.0,0.08123]
[1728834561537,0.080227,62327.0,62326.0,0.080226]
[1728834563548,0.080227,62327.0,62323.0,0.001]
[1728834563743,0.080231,62323.0,62322.0,0.080231]
[1728834564237,0.113531,62323.0,62322.0,0.080231]
[1728834566443,0.113531,62323.0,62322.0,0.081231]
[1728834566444,0.145831,62323.0,62322.0,0.081231]
[1728834570240,0.0004,62323.0,62322.0,0.12936069]
[1728834571250,0.0004,62323.0,62322.0,0.12929061]
[1728834571449,0.0004,62323.0,62322.0,0.081231]
[1728834573949,0.0004,62323.0,62322.0,0.191231]
[1728834575851,0.0004,62323.0,62322.0,0.222531]
[1728834577635,0.0004,62323.0,62322.0,0.28650166]
[1728834579742,0.0004,62323.0,62322.0,0.222531]
[1728834588860,0.0004,62323.0,62322.0,0.28667122]
[1728834589262,0.0004,62323.0,62322.0,0.39667125]
[1728834589454,0.0004,62323.0,62322.0,0.332531]
[1728834589955,0.0004,62323.0,62322.0,0.41282832]
[1728834590159,0.0004,62323.0,62322.0,0.51478623]
[1728834590359,0.0004,62323.0,62322.0,0.41282832]
[1728834590559,0.0004,62323.0,62322.0,0.332531]
[1728834590757,0.0004,62323.0,62322.0,0.41282832]
[1728834591063,0.0004,62323.0,62322.0,0.34046859]
[1728834591760,0.0004,62323.0,62322.0,0.12046859]
[1728834591960,0.0004,62323.0,62322.0,0.23046859]
[1728834596171,0.0004,62323.0,62322.0,0.41263634]
[1728834596363,0.0004,62323.0,62322.0,0.52263634]
[1728834596566,0.0004,62323.0,62322.0,0.44233902]
[1728834596766,0.0004,62323.0,62322.0,0.92369902]
[1728834598254,0.0004,62323.0,62322.0,0.82182859]
[1728834598456,0.0004,62323.0,62322.0,0.92363131]
[1728834599070,0.0004,62323.0,62322.0,0.44227131]
[1728834599764,0.0004,62323.0,62322.0,1.52363131]
[1728834601169,0.0004,62323.0,62322.0,1.52358055]
[1728834603565,0.0037,62332.0,62324.0,0.080229]
[1728834603773,0.0037,62335.0,62331.0,0.55102]
[1728834603965,0.0327,62337.0,62336.0,0.190214]
[1728834604377,0.222913,62337.0,62336.0,0.080214]
[1728834604565,0.1427,62337.0,62336.0,0.080214]
[1728834604973,0.0327,62337.0,62336.0,0.080214]
[1728834605174,0.1427,62337.0,62336.0,0.080214]
[1728834605872,0.222913,62337.0,62336.0,0.080214]
[1728834606069,0.112913,62337.0,62336.0,0.080214]
[1728834606777,0.112913,62337.0,62336.0,0.081214]
[1728834607071,0.112913,62337.0,62336.0,0.001]
[1728834607275,0.112913,62337.0,62331.0,0.48909362]
[1728834607276,0.080219,62332.0,62331.0,0.08022]
[1728834607466,0.1104,62332.0,62329.0,0.04807362]
[1728834607669,0.0326,62331.0,62329.0,0.00782674]
[1728834607872,0.0004,62330.0,62329.0,0.00782674]
[1728834608176,0.0323,62330.0,62324.0,0.0641]
[1728834608367,0.0323,62330.0,62323.0,0.00240632]
[1728834608368,0.080229,62324.0,62323.0,0.00240632]
[1728834608568,0.080629,62324.0,62323.0,0.0104201]
[1728834608769,0.080629,62324.0,62323.0,0.08263732]
[1728834609182,0.080629,62324.0,62323.0,0.09073859]
[1728834609577,0.080629,62324.0,62323.0,0.20073859]
[1728834609879,0.0004,62324.0,62323.0,0.31073859]
[1728834610069,0.0004,62324.0,62323.0,0.20073859]
[1728834610775,0.0014,62324.0,62323.0,0.23123552]
[1728834611674,0.0014,62324.0,62323.0,0.59203552]
[1728834615081,0.0014,62324.0,62323.0,0.48203552]
[1728834615881,0.0014,62324.0,62323.0,0.01150759]
[1728834616081,0.081629,62324.0,62323.0,0.00340632]
[1728834616984,1.44356,62324.0,62316.0,0.0037]
[1728834617176,0.080242,62314.0,62313.0,0.0037]
[1728834617372,0.0004,62314.0,62308.0,0.00794524]
[1728834617685,0.080649,62309.0,62308.0,0.08025]
[1728834617988,0.080649,62309.0,62308.0,0.08809729]
[1728834618282,0.080649,62309.0,62308.0,0.08025]
[1728834619983,0.081649,62309.0,62308.0,0.08125]
[1728834620683,0.080649,62309.0,62308.0,0.08125]
[1728834620881,0.082649,62309.0,62308.0,0.08125]
[1728834623290,0.0024,62309.0,62308.0,0.08125]
[1728834628594,0.082649,62309.0,62308.0,0.001]
[1728834630395,0.0024,62309.0,62308.0,0.001]
[1728834630697,0.0024,62309.0,62308.0,0.08125]
[1728834630900,0.0024,62309.0,62308.0,0.19125]
[1728834631290,0.0024,62309.0,62308.0,0.55205]
[1728834633904,0.0024,62309.0,62308.0,0.44205]
[1728834635901,0.252649,62309.0,62308.0,0.44205]
[1728834636094,0.252649,62309.0,62308.0,0.08125]
[1728834638007,0.28175692,62309.0,62308.0,0.08125]
[1728834646508,0.28175692,62309.0,62308.0,0.14538414]
[1728834648708,0.28175692,62309.0,62308.0,0.08125]
[1728834649711,0.28175692,62309.0,62308.0,0.14543539]
[1728834649898,0.28175692,62309.0,62308.0,0.06518539]
[1728834650515,0.28175692,62309.0,62308.0,0.001]
[1728834652617,1.36323692,62309.0,62308.0,0.001]
[1728834655511,1.72403692,62309.0,62308.0,0.001]
[1728834655913,1.77403692,62309.0,62308.0,0.001]
[1728834659616,1.77403692,62309.0,62302.0,0.0037]
[1728834659617,0.080256,62303.0,62302.0,0.0037]
[1728834659811,0.080256,62303.0,62301.0,0.00240729]
[1728834659812,0.080258,62302.0,62301.0,0.00240729]
[1728834660008,0.144458,62302.0,62301.0,0.00240729]
[1728834660416,0.080265,62296.0,62295.0,0.0037]
[1728834660613,0.080272,62291.0,62290.0,0.3608]
[1728834660914,0.080277,62287.0,62286.0,0.06418539]
[1728834661115,0.080277,62287.0,62284.0,0.33935259]
[1728834661116,0.08028,62285.0,62284.0,0.33935259]
[1728834661309,0.19068,62285.0,62284.0,0.0306]
[1728834661814,0.19068,62285.0,62279.0,0.06788539]
[1728834661815,0.080286,62280.0,62279.0,0.06788539]
[1728834662022,0.250686,62280.0,62279.0,0.14447239]
[1728834662219,0.250686,62280.0,62279.0,0.080287]
[1728834662921,0.0004,62280.0,62279.0,0.080287]
[1728834663115,0.0004,62285.0,62284.0,0.080281]
[1728834663317,0.0004,62285.0,62284.0,0.611081]
[1728834664123,0.0004,62287.0,62286.0,0.080278]
[1728834673517,0.0004,62287.0,62286.0,0.250278]
[1728834676321,0.0004,62287.0,62286.0,0.080278]
[1728834678415,0.08028,62285.0,62284.0,0.3608]
[1728834678624,0.08068,62285.0,62284.0,0.3608]
[1728834679325,0.080287,62279.0,62277.0,0.0654]
[1728834679624,0.080287,62279.0,62277.0,0.0617]
[1728834679625,0.078687,62279.0,62277.0,0.0617]
[1728834680422,0.078687,62279.0,62277.0,0.14199]
[1728834680829,0.078687,62279.0,62277.0,0.0306]
[1728834681721,0.078687,62279.0,62277.0,0.471689]
[1728834681923,0.078687,62279.0,62277.0,0.472569]
[1728834682228,0.079687,62279.0,62278.0,0.0409]
[1728834683716,0.079687,62279.0,62278.0,0.008]
[1728834684026,0.10915928,62279.0,62278.0,0.008]
[1728834684334,0.46995928,62279.0,62278.0,0.008]
[1728834686324,0.53255928,62279.0,62278.0,0.008]
[1728834686720,1.61427928,62279.0,62278.0,0.008]
[1728834687430,1.61427928,62279.0,62271.0,0.0037]
[1728834687431,0.080296,62272.0,62271.0,0.0037]
[1728834687626,0.0803,62269.0,62268.0,0.080301]
[1728834687933,0.0807,62269.0,62268.0,0.080301]
[1728834688225,0.2507,62269.0,62268.0,0.080301]
[1728834690519,0.2507,62269.0,62268.0,0.081301]
[1728834691025,0.2507,62269.0,62261.0,0.0037]
[1728834691026,0.080309,62262.0,62261.0,0.0037]
[1728834691230,0.080311,62261.0,62260.0,0.080311]
[1728834691631,0.080711,62261.0,62260.0,0.080311]
[1728834693418,0.094711,62261.0,62260.0,0.081311]
[1728834697135,0.12436047,62261.0,62260.0,0.081311]
[1728834697528,0.0144,62261.0,62260.0,0.081311]
[1728834702037,0.1844,62261.0,62260.0,0.081311]
[1728834715655,0.1844,62261.0,62260.0,0.14549639]
[1728834716048,0.1844,62261.0,62260.0,0.081311]
[1728834716558,0.1844,62261.0,62260.0,0.14549639]
[1728834716959,0.1844,62261.0,62260.0,0.081311]
[1728834719652,0.1844,62261.0,62260.0,0.14549639]
[1728834719851,0.1244,62261.0,62260.0,0.14549639]
[1728834720558,0.1244,62261.0,62260.0,0.081311]
[1728834731461,0.204711,62261.0,62260.0,0.081311]
[1728834731763,0.204711,62261.0,62260.0,0.001]
[1728834733360,0.0144,62261.0,62260.0,0.081312]
[1728834734158,0.0144,62261.0,62260.0,0.26542224]
[1728834734862,0.0041,62269.0,62268.0,0.080302]
[1728834735055,0.0004,62269.0,62268.0,0.76506638]
[1728834735456,0.0004,62272.0,62268.0,0.76506638]
[1728834735665,0.0004,62272.0,62271.0,0.190298]
[1728834737866,0.0004,62272.0,62271.0,0.250298]
[1728834738071,0.0064,62272.0,62271.0,0.251298]
[1728834738371,0.0064,62272.0,62271.0,0.31541196]
[1728834738665,0.0004,62272.0,62271.0,0.31441196]
[1728834738863,0.0004,62272.0,62271.0,0.31541196]
[1728834739266,0.0004,62272.0,62271.0,0.31539511]
[1728834740369,0.0004,62272.0,62271.0,0.251298]
[1728834740571,0.0004,62272.0,62271.0,0.31539511]
[1728834741467,0.0004,62272.0,62271.0,0.251298]
[1728834745869,0.0064,62272.0,62271.0,0.251298]
[1728834748569,0.00650915,62279.0,62278.0,0.080289]
[1728834748769,0.00650915,62279.0,62278.0,0.611089]
[1728834748770,0.00280915,62279.0,62278.0,0.611089]
[1728834749074,0.00280915,62279.0,62278.0,0.65911268]
[1728834749274,0.00280915,62279.0,62278.0,0.65910811]
[1728834750777,0.00380915,62279.0,62278.0,0.66010811]
[1728834751172,0.00380915,62279.0,62278.0,0.612089]
[1728834751972,0.00380915,62279.0,62278.0,0.442089]
[1728834753979,0.17380915,62279.0,62278.0,0.442089]
[1728834754178,0.00380915,62279.0,62278.0,0.442089]
[1728834757279,0.00380915,62279.0,62278.0,0.49010417]
[1728834757479,0.00380915,62279.0,62278.0,0.48410417]
[1728834759683,0.00380915,62279.0,62278.0,0.436089]
[1728834761672,0.00380915,62279.0,62278.0,0.48410417]
[1728834762275,0.00380915,62279.0,62278.0,0.075289]
[1728834763577,0.00380915,62279.0,62278.0,0.13932009]
[1728834763980,0.00380915,62279.0,62278.0,0.075289]
[1728834766380,0.00380915,62279.0,62278.0,0.185289]
[1728834766688,0.0014,62279.0,62278.0,0.185289]
[1728834767389,0.0014,62279.0,62278.0,0.19327614]
[1728834769292,0.0014,62279.0,62278.0,0.08327614]
[1728834769890,0.0014,62279.0,62278.0,0.16352369]
[1728834770080,0.0014,62279.0,62278.0,0.18629706]
[1728834770393,0.0004,62287.0,62279.0,0.080287]
[1728834770579,0.0004,62287.0,62286.0,0.661078]
[1728834770780,0.0004,62287.0,62286.0,0.76409892]
[1728834770986,0.0004,62287.0,62286.0,0.7503685]
[1728834771286,0.0004,62287.0,62286.0,1.30903892]
[1728834771597,0.0004,62287.0,62286.0,1.19903892]
[1728834771893,0.0004,62287.0,62286.0,0.71739892]
[1728834773687,0.0004,62287.0,62286.0,0.71839892]
[1728834773898,0.0004,62287.0,62286.0,0.615378]
[1728834774793,0.0004,62287.0,62286.0,0.64402415]
[1728834778885,0.0004,62287.0,62286.0,0.28322415]
[1728834779194,0.0004,62287.0,62286.0,0.64402415]
[1728834779589,0.0004,62287.0,62286.0,0.28322415]
[1728834779788,0.0004,62287.0,62286.0,0.64402415]
[1728834780983,0.0004,62287.0,62286.0,0.505378]
[1728834781293,0.0004,62287.0,62286.0,0.67945704]
[1728834781490,0.0004,62287.0,62286.0,0.64785704]
[1728834781688,0.1104,62287.0,62286.0,0.53785704]
[1728834781897,0.1104,62287.0,62286.0,0.473778]
[1728834783298,0.1104,62287.0,62286.0,0.52183742]
[1728834783497,0.1104,62287.0,62286.0,0.473778]
[1728834784900,0.1104,62287.0,62286.0,0.52183742]
[1728834785194,0.1104,62287.0,62286.0,0.473778]
[1728834785402,0.0004,62287.0,62286.0,0.583778]
[1728834785785,0.0004,62287.0,62286.0,0.64785704]
[1728834785989,0.0004,62287.0,62286.0,0.583778]
[1728834787494,0.0004,62291.0,62290.0,0.080273]
[1728834787697,0.0004,62291.0,62290.0,0.190273]
[1728834787895,0.0004,62291.0,62290.0,0.314073]
[1728834788085,0.0004,62291.0,62290.0,0.41640956]
[1728834789501,0.0004,62291.0,62290.0,0.41740956]
[1728834790694,0.0004,62296.0,62290.0,0.796673]
[1728834790895,0.0004,62296.0,62295.0,0.611067]
[1728834791400,0.0004,62296.0,62295.0,0.67510669]
[1728834791697,0.0004,62296.0,62295.0,0.611067]
[1728834792308,0.0004,62296.0,62295.0,0.69112368]
[1728834792603,0.0004,62296.0,62295.0,0.611067]
[1728834793201,0.0004,62296.0,62295.0,0.612067]
[1728834793395,0.0004,62296.0,62295.0,1.093627]
[1728834793596,0.0004,62302.0,62301.0,0.080259]
[1728834793802,0.0004,62302.0,62301.0,0.611059]
[1728834793998,0.0004,62302.0,62301.0,0.73728137]
[1728834794499,0.0004,62302.0,62301.0,0.673259]
[1728834795297,0.0004,62302.0,62301.0,0.73728137]
[1728834795498,0.0004,62302.0,62301.0,0.73828137]
[1728834795895,0.0004,62302.0,62301.0,0.674259]
[1728834796105,0.0004,62302.0,62301.0,0.73727265]
[1728834796299,0.0004,62302.0,62301.0,0.7382809]
[1728834796694,0.0004,62302.0,62301.0,0.674259]
[1728834796901,0.0004,62302.0,62301.0,0.70301724]
[1728834798302,0.0004,62302.0,62301.0,0.76702931]
[1728834798605,0.0004,62302.0,62301.0,0.70301724]
[1728834798818,0.0004,62302.0,62301.0,0.76703104]
[1728834799110,0.0004,62302.0,62301.0,0.70301724]
[1728834799297,0.0004,62302.0,62301.0,0.76703104]
[1728834799503,0.0004,62302.0,62301.0,0.70301724]
[1728834800909,0.0004,62302.0,62301.0,0.49007899]
[1728834801212,0.0004,62302.0,62301.0,0.442059]
[1728834804609,0.250658,62302.0,62301.0,0.442059]
[1728834804910,0.250658,62302.0,62301.0,0.3618]
[1728834805704,0.279892,62302.0,62301.0,0.3618]
[1728834806111,0.279892,62302.0,62297.0,0.04801999]
[1728834806112,1.811954,62302.0,62294.0,0.05171999]
[1728834806322,0.080269,62293.0,62291.0,0.0037]
[1728834806510,0.080272,62291.0,62289.0,0.40881999]
[1728834806714,0.0004,62290.0,62289.0,0.3608]
[1728834807013,0.0004,62290.0,62289.0,0.48909499]
[1728834807214,0.0004,62290.0,62289.0,0.441075]
[1728834809109,0.0014,62290.0,62289.0,0.442075]
[1728834809919,0.03004475,62290.0,62289.0,0.442075]
[1728834810122,0.02874475,62290.0,62289.0,0.442075]
[1728834811520,0.10901775,62290.0,62289.0,0.3618]
[1728834813113,0.10901775,62290.0,62289.0,0.001]
[1728834818021,0.21901775,62290.0,62289.0,0.001]
[1728834820422,0.21901775,62290.0,62289.0,0.081275]
[1728834820819,0.10901775,62290.0,62289.0,0.081275]
[1728834821020,0.0001,62290.0,62289.0,0.442075]
[1728834822222,0.0001,62290.0,62289.0,0.472575]
[1728834823023,0.1101,62290.0,62289.0,0.472575]
[1728834823929,0.0001,62290.0,62289.0,0.472575]
[1728834824427,0.0001,62290.0,62289.0,0.111775]
[1728834830431,0.0001,62290.0,62289.0,0.19239499]
[1728834832530,0.0001,62290.0,62289.0,0.144375]
[1728834834239,0.1701,62290.0,62289.0,0.144375]
[1728834834432,0.1701,62290.0,62289.0,0.2083888]
[1728834835338,0.1701,62290.0,62289.0,0.144375]
[1728834835531,0.1695,62290.0,62289.0,0.144375]
[1728834840734,0.0004,62292.0,62291.0,0.080272]
[1728834840933,0.0004,62302.0,62298.0,0.080263]
[1728834841134,0.4699358,62304.0,62298.0,0.06423598]
[1728834841341,0.4699358,62304.0,62303.0,0.080256]
[1728834841544,0.6399358,62304.0,62303.0,0.080256]
[1728834842041,0.3608,62308.0,62307.0,0.080251]
[1728834842042,0.611051,62308.0,62307.0,0.080251]
[1728834842341,0.3608,62308.0,62307.0,0.080251]
[1728834843338,0.63941313,62308.0,62307.0,0.080251]
[1728834843734,0.080255,62305.0,62304.0,0.080255]
[1728834843937,0.250655,62305.0,62304.0,0.080255]
[1728834851748,0.080655,62305.0,62304.0,0.080255]
[1728834855250,0.080655,62305.0,62301.0,0.0304]
[1728834855446,0.250258,62302.0,62301.0,0.110655]
[1728834855849,0.190258,62302.0,62301.0,0.110655]
[1728834856053,0.190658,62302.0,62301.0,0.110655]
[1728834857546,0.190658,62302.0,62301.0,0.111655]
[1728834858443,0.190658,62302.0,62301.0,0.0314]
[1728834858863,0.189858,62302.0,62301.0,0.0314]
[1728834861149,0.079858,62302.0,62301.0,0.0314]
[1728834862667,0.079858,62302.0,62301.0,0.221659]
[1728834863352,0.0004,62302.0,62301.0,0.221659]
[1728834863550,0.080658,62302.0,62301.0,0.11094993]
[1728834863750,0.080658,62302.0,62301.0,0.1728]
[1728834864065,0.080658,62302.0,62301.0,0.253059]
[1728834864358,0.080658,62302.0,62301.0,0.30120893]
[1728834864557,0.0004,62302.0,62301.0,0.30120893]
[1728834864955,0.0004,62302.0,62301.0,0.253059]
[1728834865457,0.0004,62302.0,62301.0,0.30120893]
[1728834865658,0.0004,62302.0,62301.0,0.66200893]
[1728834865862,0.0004,62302.0,62301.0,0.613859]
[1728834866062,0.0004,62302.0,62301.0,0.66196026]
[1728834866563,0.0004,62302.0,62301.0,0.613859]
[1728834867558,0.0004,62302.0,62301.0,0.503859]
[1728834869561,0.0004,62302.0,62301.0,0.58415397]
[1728834869761,0.0004,62302.0,62301.0,0.503859]
[1728834870060,0.0004,62302.0,62301.0,0.53211701]
[1728834870258,0.0004,62302.0,62301.0,0.61241198]
[1728834870459,0.0004,62302.0,62301.0,0.71467892]
[1728834870761,0.0004,62302.0,62301.0,0.61241198]
[1728834872166,0.0004,62302.0,62301.0,0.53211701]
[1728834872666,0.0004,62302.0,62301.0,0.61241198]
[1728834873059,0.0004,62305.0,62304.0,0.080255]
[1728834873269,0.0004,62305.0,62304.0,0.190255]
[1728834873563,0.0004,62305.0,62304.0,0.27047619]
[1728834874159,0.0004,62305.0,62304.0,0.37357169]
[1728834874360,0.0004,62305.0,62304.0,0.191255]
[1728834874754,0.0004,62305.0,62304.0,0.27147619]
[1728834874955,0.0004,62305.0,62304.0,0.37357274]
[1728834875168,0.0004,62305.0,62304.0,0.3735179]
[1728834875374,0.0004,62305.0,62304.0,0.191255]
[1728834876168,0.0004,62305.0,62304.0,0.223855]
[1728834877064,0.0004,62305.0,62304.0,0.113855]
[1728834877265,0.0004,62305.0,62304.0,0.223855]
[1728834881964,0.0004,62305.0,62304.0,0.584655]
[1728834884973,0.0004,62305.0,62304.0,0.223855]
[1728834885168,0.0004,62305.0,62304.0,0.584655]
[1728834885472,0.1104,62305.0,62304.0,0.442055]
[1728834885670,0.190654,62305.0,62304.0,0.442055]
[1728834886267,0.190654,62305.0,62304.0,0.50619289]
[1728834888175,0.190654,62305.0,62304.0,0.14539289]
[1728834889278,0.0004,62305.0,62304.0,0.14539289]
[1728834890774,0.0004,62305.0,62304.0,0.081255]
[1728834891178,0.0004,62305.0,62304.0,0.442055]
[1728834894690,0.0004,62305.0,62304.0,0.52227619]
[1728834895485,0.0004,62305.0,62304.0,0.62438265]
[1728834896399,0.0004,62305.0,62304.0,0.54416146]
[1728834896589,0.1104,62305.0,62304.0,0.52231338]